[Event "Early-Titled-Tuesday-Blitz-October-24-2023"]
[Site "Chess.com"]
[Date "2023.10.24"]
[Round "4"]
[White "sari07"]
[Black "MikeSailer"]
[Result "1-0"]
[WhiteElo "2261"]
[BlackElo "2034"]
[TimeControl "180+1"]
[EndTime "8:34:50 PDT"]
[Termination "sari07 won by resignation"]

1. Nf3 {[%clk 0:03:00.9]} 1... g6 {[%clk 0:02:59.7]} 2. e4 {[%clk 0:02:59.5]}
2... Bg7 {[%clk 0:03:00.6]} 3. d4 {[%clk 0:02:59.9]} 3... c5 {[%clk 0:02:57.8]}
4. c3 {[%clk 0:02:58.3]} 4... cxd4 {[%clk 0:02:56.9]} 5. cxd4 {[%clk 0:02:58.2]}
5... d5 {[%clk 0:02:57.5]} 6. e5 {[%clk 0:02:55.8]} 6... Bg4 {[%clk 0:02:57.5]}
7. h3 {[%clk 0:02:53.7]} 7... Bxf3 {[%clk 0:02:57.2]} 8. Qxf3 {[%clk 0:02:54.6]}
8... e6 {[%clk 0:02:49.5]} 9. Nc3 {[%clk 0:02:53.1]} 9... a6 {[%clk 0:02:48.4]}
10. Bd3 {[%clk 0:02:46.9]} 10... Nc6 {[%clk 0:02:45]} 11. Be3 {[%clk 0:02:47.4]}
11... Nge7 {[%clk 0:02:44.9]} 12. O-O {[%clk 0:02:44.1]} 12... O-O {[%clk
0:02:45.2]} 13. h4 {[%clk 0:02:42]} 13... f6 {[%clk 0:02:37.5]} 14. exf6 {[%clk
0:02:34.3]} 14... Rxf6 {[%clk 0:02:35.9]} 15. Qg4 {[%clk 0:02:32.6]} 15... Nf5
{[%clk 0:02:13.6]} 16. Bg5 {[%clk 0:02:30.5]} 16... Ncxd4 {[%clk 0:02:13.1]} 17.
Ne2 {[%clk 0:02:21.3]} 17... Nxe2+ {[%clk 0:02:02.8]} 18. Bxe2 {[%clk
0:02:22.2]} 18... Qd6 {[%clk 0:01:52.8]} 19. Bxf6 {[%clk 0:02:22]} 19... Bxf6
{[%clk 0:01:53.2]} 20. h5 {[%clk 0:02:16.1]} 20... Kg7 {[%clk 0:01:51.8]} 21.
Bd3 {[%clk 0:02:12.9]} 21... Bxb2 {[%clk 0:01:20.4]} 22. Rab1 {[%clk 0:02:10.7]}
22... Qe5 {[%clk 0:01:20.7]} 23. Qb4 {[%clk 0:01:58.1]} 23... Qc3 {[%clk
0:01:00.4]} 24. Qxb2 {[%clk 0:01:56.1]} 24... Qxb2 {[%clk 0:01:00.2]} 25. Rxb2
{[%clk 0:01:57]} 25... gxh5 {[%clk 0:01:00.3]} 26. Bxf5 {[%clk 0:01:56.6]} 1-0

[Event "Early-Titled-Tuesday-Blitz-October-24-2023"]
[Site "Chess.com"]
[Date "2023.10.24"]
[Round "4"]
[White "Cayse"]
[Black "SashaKuzhilniy"]
[Result "1-0"]
[WhiteElo "2873"]
[BlackElo "2644"]
[TimeControl "180+1"]
[EndTime "8:34:51 PDT"]
[Termination "Cayse won by resignation"]

1. e4 {[%clk 0:03:00.9]} 1... g6 {[%clk 0:02:59.4]} 2. d4 {[%clk 0:03:00.6]}
2... Bg7 {[%clk 0:03:00]} 3. Nc3 {[%clk 0:03:01]} 3... d6 {[%clk 0:03:00.6]} 4.
f4 {[%clk 0:02:59.7]} 4... a6 {[%clk 0:03:00.2]} 5. Nf3 {[%clk 0:02:59.3]} 5...
b5 {[%clk 0:03:00.3]} 6. Bd3 {[%clk 0:02:59.9]} 6... Nd7 {[%clk 0:02:57.9]} 7.
a4 {[%clk 0:02:59.1]} 7... b4 {[%clk 0:02:56.1]} 8. Ne2 {[%clk 0:02:59.2]} 8...
c5 {[%clk 0:02:54.6]} 9. c3 {[%clk 0:02:59.2]} 9... bxc3 {[%clk 0:02:51.6]} 10.
bxc3 {[%clk 0:02:59]} 10... cxd4 {[%clk 0:02:44.8]} 11. cxd4 {[%clk 0:02:58.7]}
11... Ngf6 {[%clk 0:02:45.3]} 12. O-O {[%clk 0:02:58]} 12... O-O {[%clk
0:02:43]} 13. Ng3 {[%clk 0:02:57.2]} 13... Bb7 {[%clk 0:02:22.8]} 14. f5 {[%clk
0:02:57.1]} 14... Rb8 {[%clk 0:01:57.4]} 15. Qe2 {[%clk 0:02:56.1]} 15... a5
{[%clk 0:01:56.1]} 16. Kh1 {[%clk 0:02:48.2]} 16... e5 {[%clk 0:01:53.1]} 17.
fxe6 {[%clk 0:02:43.2]} 17... fxe6 {[%clk 0:01:54]} 18. Ba3 {[%clk 0:02:43.3]}
18... Ne8 {[%clk 0:01:50.7]} 19. Bc4 {[%clk 0:02:33.3]} 19... Qe7 {[%clk
0:01:18.7]} 20. e5 {[%clk 0:02:31.9]} 20... Bd5 {[%clk 0:01:14.1]} 21. exd6
{[%clk 0:02:26.4]} 21... Qf6 {[%clk 0:01:11.3]} 22. Ne5 {[%clk 0:02:09]} 22...
Qd8 {[%clk 0:01:11.4]} 23. Bxd5 {[%clk 0:02:07.8]} 23... exd5 {[%clk 0:01:02.1]}
24. Nc6 {[%clk 0:02:07.5]} 24... Rxf1+ {[%clk 0:00:51.9]} 25. Rxf1 {[%clk
0:02:06.2]} 25... Qb6 {[%clk 0:00:48.4]} 26. Qe6+ {[%clk 0:02:03.9]} 26... Kh8
{[%clk 0:00:47.5]} 27. Nxb8 {[%clk 0:02:04.1]} 1-0

[Event "Early-Titled-Tuesday-Blitz-October-24-2023"]
[Site "Chess.com"]
[Date "2023.10.24"]
[Round "4"]
[White "Laico"]
[Black "ferrufino64"]
[Result "0-1"]
[WhiteElo "2387"]
[BlackElo "2206"]
[TimeControl "180+1"]
[EndTime "8:34:52 PDT"]
[Termination "ferrufino64 won by resignation"]

1. e4 {[%clk 0:02:50.7]} 1... c5 {[%clk 0:03:00]} 2. Nc3 {[%clk 0:02:51.1]} 2...
d6 {[%clk 0:02:59.8]} 3. f4 {[%clk 0:02:51.7]} 3... Nc6 {[%clk 0:02:59.9]} 4.
Nf3 {[%clk 0:02:52.4]} 4... e6 {[%clk 0:03:00.5]} 5. Bb5 {[%clk 0:02:53.1]} 5...
Ne7 {[%clk 0:02:57.6]} 6. d3 {[%clk 0:02:53.2]} 6... a6 {[%clk 0:02:58]} 7.
Bxc6+ {[%clk 0:02:53.9]} 7... Nxc6 {[%clk 0:02:58.9]} 8. O-O {[%clk 0:02:54.3]}
8... Be7 {[%clk 0:02:59]} 9. Be3 {[%clk 0:02:54.8]} 9... O-O {[%clk 0:02:57.5]}
10. d4 {[%clk 0:02:55.3]} 10... cxd4 {[%clk 0:02:57.2]} 11. Nxd4 {[%clk
0:02:56.2]} 11... Bd7 {[%clk 0:02:56.7]} 12. Qd2 {[%clk 0:02:56.7]} 12... Qc7
{[%clk 0:02:56.7]} 13. Rad1 {[%clk 0:02:57.3]} 13... Rac8 {[%clk 0:02:54.7]} 14.
Kh1 {[%clk 0:02:56.3]} 14... b5 {[%clk 0:02:54.1]} 15. a3 {[%clk 0:02:56.2]}
15... Rfd8 {[%clk 0:02:53.5]} 16. f5 {[%clk 0:02:54.8]} 16... Ne5 {[%clk
0:02:27.1]} 17. Qf2 {[%clk 0:02:49.8]} 17... Ng4 {[%clk 0:02:24.1]} 18. Qg3
{[%clk 0:02:49.8]} 18... Nxe3 {[%clk 0:02:24.3]} 19. Qxe3 {[%clk 0:02:50.7]}
19... Bf6 {[%clk 0:02:00.7]} 20. Rf3 {[%clk 0:02:49]} 20... Qc5 {[%clk
0:01:54.5]} 21. fxe6 {[%clk 0:02:41.9]} 21... fxe6 {[%clk 0:01:52.9]} 22. Rxf6
{[%clk 0:02:38.4]} 22... gxf6 {[%clk 0:01:52.9]} 23. Rd3 {[%clk 0:02:37.3]}
23... Kh8 {[%clk 0:01:48.4]} 24. Nd5 {[%clk 0:02:30.2]} 24... exd5 {[%clk
0:01:39.6]} 25. Qh6 {[%clk 0:02:30]} 25... Rf8 {[%clk 0:01:38.2]} 26. Rg3 {[%clk
0:01:23]} 26... Rf7 {[%clk 0:01:34.7]} 27. c3 {[%clk 0:01:21.3]} 27... dxe4
{[%clk 0:01:32.7]} 0-1

[Event "Early-Titled-Tuesday-Blitz-October-24-2023"]
[Site "Chess.com"]
[Date "2023.10.24"]
[Round "4"]
[White "Millerkallpa"]
[Black "victormago"]
[Result "0-1"]
[WhiteElo "2048"]
[BlackElo "2430"]
[TimeControl "180+1"]
[EndTime "8:35:08 PDT"]
[Termination "victormago won by resignation"]

1. e4 {[%clk 0:02:52.5]} 1... c5 {[%clk 0:03:00]} 2. Nf3 {[%clk 0:02:51.5]} 2...
d6 {[%clk 0:03:00.4]} 3. d4 {[%clk 0:02:51.4]} 3... cxd4 {[%clk 0:03:00]} 4.
Nxd4 {[%clk 0:02:52.3]} 4... Nf6 {[%clk 0:03:00.1]} 5. Nc3 {[%clk 0:02:52.1]}
5... a6 {[%clk 0:03:00.7]} 6. Bg5 {[%clk 0:02:51.9]} 6... e6 {[%clk 0:02:59.6]}
7. f4 {[%clk 0:02:51.3]} 7... h6 {[%clk 0:02:59.6]} 8. Bh4 {[%clk 0:02:42.5]}
8... Be7 {[%clk 0:02:59.1]} 9. Qf3 {[%clk 0:02:41.6]} 9... Qc7 {[%clk
0:02:58.4]} 10. O-O-O {[%clk 0:02:38]} 10... Nbd7 {[%clk 0:02:58.5]} 11. Bd3
{[%clk 0:02:20.4]} 11... Rb8 {[%clk 0:02:44.9]} 12. Rhe1 {[%clk 0:02:03]} 12...
b5 {[%clk 0:02:42.9]} 13. e5 {[%clk 0:01:54.8]} 13... dxe5 {[%clk 0:02:41.4]}
14. fxe5 {[%clk 0:01:53.3]} 14... Nxe5 {[%clk 0:02:33.8]} 15. Rxe5 {[%clk
0:01:42.7]} 15... Qxe5 {[%clk 0:02:26.3]} 16. Bg3 {[%clk 0:01:42.3]} 16... Qg5+
{[%clk 0:02:16.1]} 17. Bf4 {[%clk 0:01:41.3]} 17... Bb7 {[%clk 0:02:16.2]} 18.
Qe3 {[%clk 0:01:08.3]} 18... Nd5 {[%clk 0:02:06.5]} 19. Nxd5 {[%clk 0:01:07]}
19... Bxd5 {[%clk 0:02:05.2]} 20. Bxg5 {[%clk 0:01:03.8]} 20... Bxg5 {[%clk
0:02:04.8]} 21. Re1 {[%clk 0:00:28.9]} 21... Bxe3+ {[%clk 0:02:02.3]} 22. Rxe3
{[%clk 0:00:29.8]} 22... O-O {[%clk 0:02:02]} 23. g3 {[%clk 0:00:29.3]} 23...
Rfd8 {[%clk 0:02:00.3]} 0-1

[Event "Early-Titled-Tuesday-Blitz-October-24-2023"]
[Site "Chess.com"]
[Date "2023.10.24"]
[Round "4"]
[White "FoxOnTheRun97"]
[Black "yosephtaher"]
[Result "0-1"]
[WhiteElo "2543"]
[BlackElo "2778"]
[TimeControl "180+1"]
[EndTime "8:35:17 PDT"]
[Termination "yosephtaher won by resignation"]

1. d4 {[%clk 0:02:57]} 1... Nf6 {[%clk 0:03:00]} 2. Bg5 {[%clk 0:02:56.7]} 2...
c5 {[%clk 0:03:00.2]} 3. d5 {[%clk 0:02:56.8]} 3... Qb6 {[%clk 0:03:00.1]} 4.
Nc3 {[%clk 0:02:51.7]} 4... Qxb2 {[%clk 0:02:58.7]} 5. Bd2 {[%clk 0:02:51.5]}
5... Qb6 {[%clk 0:02:59.4]} 6. e4 {[%clk 0:02:51.2]} 6... d6 {[%clk 0:02:59.9]}
7. f4 {[%clk 0:02:50.6]} 7... Qc7 {[%clk 0:02:59.6]} 8. Nf3 {[%clk 0:02:46.3]}
8... Bg4 {[%clk 0:02:58.5]} 9. Rb1 {[%clk 0:02:40.6]} 9... a6 {[%clk 0:02:58.2]}
10. a4 {[%clk 0:02:40.7]} 10... g6 {[%clk 0:02:58.7]} 11. Bc4 {[%clk 0:02:36.5]}
11... Bg7 {[%clk 0:02:58.3]} 12. h3 {[%clk 0:02:36.1]} 12... Bxf3 {[%clk
0:02:58.4]} 13. Qxf3 {[%clk 0:02:37]} 13... O-O {[%clk 0:02:58.4]} 14. g4 {[%clk
0:02:23.6]} 14... Nbd7 {[%clk 0:02:56.5]} 15. O-O {[%clk 0:01:56.5]} 15... Nb6
{[%clk 0:02:52.9]} 16. Be2 {[%clk 0:01:49.9]} 16... c4 {[%clk 0:02:52.1]} 17. g5
{[%clk 0:01:41.1]} 17... Nfd7 {[%clk 0:02:50.7]} 18. h4 {[%clk 0:01:40.7]} 18...
Nc5 {[%clk 0:02:50.3]} 19. h5 {[%clk 0:01:28.8]} 19... Nbxa4 {[%clk 0:02:49.1]}
20. Nxa4 {[%clk 0:01:20.2]} 20... Nxa4 {[%clk 0:02:50]} 21. Kg2 {[%clk
0:01:15.9]} 21... e6 {[%clk 0:02:48.2]} 22. hxg6 {[%clk 0:01:06.2]} 22... hxg6
{[%clk 0:02:49.1]} 23. dxe6 {[%clk 0:01:03.5]} 23... fxe6 {[%clk 0:02:49.3]} 24.
Rh1 {[%clk 0:01:02.8]} 24... Nc5 {[%clk 0:02:45.2]} 25. Bxc4 {[%clk 0:00:55.6]}
25... b5 {[%clk 0:02:45.4]} 26. Ba2 {[%clk 0:00:38.7]} 26... Rae8 {[%clk
0:02:45.2]} 27. Be3 {[%clk 0:00:31]} 27... Qc6 {[%clk 0:02:43.5]} 28. Bxc5
{[%clk 0:00:25.7]} 28... dxc5 {[%clk 0:02:44.4]} 29. c4 {[%clk 0:00:20.5]} 29...
b4 {[%clk 0:02:44.4]} 30. Rbd1 {[%clk 0:00:17.3]} 30... e5 {[%clk 0:02:43.9]}
31. Bb1 {[%clk 0:00:11.6]} 31... Rxf4 {[%clk 0:02:43.9]} 32. Qh3 {[%clk
0:00:11.6]} 32... Qe6 {[%clk 0:02:43.4]} 33. Qh7+ {[%clk 0:00:09.8]} 33... Kf7
{[%clk 0:02:43.9]} 34. Rhf1 {[%clk 0:00:05.2]} 34... Qg4+ {[%clk 0:02:44.1]} 0-1

[Event "Early-Titled-Tuesday-Blitz-October-24-2023"]
[Site "Chess.com"]
[Date "2023.10.24"]
[Round "4"]
[White "Daffidollchess2"]
[Black "CristianS27"]
[Result "0-1"]
[WhiteElo "2690"]
[BlackElo "2535"]
[TimeControl "180+1"]
[EndTime "8:35:21 PDT"]
[Termination "CristianS27 won by checkmate"]

1. e4 {[%clk 0:02:47.3]} 1... e5 {[%clk 0:03:00.1]} 2. Nf3 {[%clk 0:02:46.9]}
2... Nc6 {[%clk 0:03:00.7]} 3. Bb5 {[%clk 0:02:47.1]} 3... a6 {[%clk 0:03:01.3]}
4. Ba4 {[%clk 0:02:47.2]} 4... Nf6 {[%clk 0:03:01.9]} 5. O-O {[%clk 0:02:47]}
5... Nxe4 {[%clk 0:03:02.5]} 6. d4 {[%clk 0:02:47.2]} 6... exd4 {[%clk
0:03:03.4]} 7. Re1 {[%clk 0:02:44.2]} 7... d5 {[%clk 0:03:03.8]} 8. Nxd4 {[%clk
0:02:32.3]} 8... Bd6 {[%clk 0:03:04.4]} 9. Nxc6 {[%clk 0:02:17.4]} 9... Bxh2+
{[%clk 0:03:04.1]} 10. Kf1 {[%clk 0:02:15]} 10... Qh4 {[%clk 0:03:05]} 11. Rxe4+
{[%clk 0:01:47.9]} 11... dxe4 {[%clk 0:03:03.9]} 12. Na5+ {[%clk 0:01:27.3]}
12... b5 {[%clk 0:03:00.8]} 13. Qd5 {[%clk 0:01:27.1]} 13... O-O {[%clk
0:02:43.5]} 14. Qxa8 {[%clk 0:01:11.4]} 14... Bd6 {[%clk 0:02:29]} 15. Ke1
{[%clk 0:00:40.5]} 15... Rd8 {[%clk 0:01:54.3]} 16. c3 {[%clk 0:00:14.3]} 16...
Qh1+ {[%clk 0:01:48.2]} 17. Kd2 {[%clk 0:00:14.4]} 17... Bf4+ {[%clk 0:01:44]}
18. Kc2 {[%clk 0:00:14.7]} 18... Qd1# {[%clk 0:01:43.9]} 0-1

[Event "Early-Titled-Tuesday-Blitz-October-24-2023"]
[Site "Chess.com"]
[Date "2023.10.24"]
[Round "4"]
[White "vugarrasulov"]
[Black "blitzking1729"]
[Result "1-0"]
[WhiteElo "3005"]
[BlackElo "2807"]
[TimeControl "180+1"]
[EndTime "8:35:23 PDT"]
[Termination "vugarrasulov won by resignation"]

1. e4 {[%clk 0:03:00.9]} 1... c5 {[%clk 0:02:53.2]} 2. Nf3 {[%clk 0:03:00.9]}
2... e6 {[%clk 0:02:53.1]} 3. d4 {[%clk 0:03:00.2]} 3... cxd4 {[%clk 0:02:53.8]}
4. Nxd4 {[%clk 0:03:01.1]} 4... Nc6 {[%clk 0:02:53.1]} 5. Nc3 {[%clk 0:03:00.9]}
5... Qc7 {[%clk 0:02:52.6]} 6. Be3 {[%clk 0:03:01]} 6... a6 {[%clk 0:02:52.9]}
7. Qf3 {[%clk 0:03:01.3]} 7... Ne5 {[%clk 0:02:52.9]} 8. Qg3 {[%clk 0:03:01.3]}
8... h5 {[%clk 0:02:53.7]} 9. f4 {[%clk 0:02:57.5]} 9... h4 {[%clk 0:02:47]} 10.
Qh3 {[%clk 0:02:56.9]} 10... Nc4 {[%clk 0:02:46.1]} 11. Bxc4 {[%clk 0:02:57.3]}
11... Qxc4 {[%clk 0:02:46]} 12. O-O-O {[%clk 0:02:57.9]} 12... d6 {[%clk
0:02:40.9]} 13. Qf3 {[%clk 0:02:49.3]} 13... b5 {[%clk 0:02:37.9]} 14. e5 {[%clk
0:02:45.4]} 14... d5 {[%clk 0:02:22.8]} 15. Kb1 {[%clk 0:02:45.3]} 15... g6
{[%clk 0:02:17.4]} 16. f5 {[%clk 0:02:38.4]} 16... gxf5 {[%clk 0:02:16.8]} 17.
Nxf5 {[%clk 0:02:39]} 17... exf5 {[%clk 0:01:34.6]} 18. Nxd5 {[%clk 0:02:39.4]}
18... Bb7 {[%clk 0:01:33.9]} 19. Nf6+ {[%clk 0:02:37.7]} 19... Nxf6 {[%clk
0:01:32.9]} 20. Qxb7 {[%clk 0:02:38.6]} 20... Qe4 {[%clk 0:00:52.1]} 21. Qc7
{[%clk 0:02:38.3]} 21... Bb4 {[%clk 0:00:27.6]} 22. Rd4 {[%clk 0:02:24]} 22...
Qxg2 {[%clk 0:00:13.6]} 23. Rg1 {[%clk 0:02:22.6]} 23... Qf3 {[%clk 0:00:04.6]}
24. exf6 {[%clk 0:02:20.8]} 24... Qxe3 {[%clk 0:00:04]} 25. Qc6+ {[%clk
0:02:19.7]} 1-0

[Event "Early-Titled-Tuesday-Blitz-October-24-2023"]
[Site "Chess.com"]
[Date "2023.10.24"]
[Round "4"]
[White "Fandorine"]
[Black "MarijaKuznecova"]
[Result "1-0"]
[WhiteElo "2918"]
[BlackElo "2410"]
[TimeControl "180+1"]
[EndTime "8:35:27 PDT"]
[Termination "Fandorine won by resignation"]

1. Nf3 {[%clk 0:03:00.9]} 1... c5 {[%clk 0:02:59.1]} 2. g3 {[%clk 0:02:17.4]}
2... Nc6 {[%clk 0:02:56.8]} 3. Bg2 {[%clk 0:02:17.4]} 3... e5 {[%clk 0:02:56.9]}
4. d3 {[%clk 0:02:17.3]} 4... d6 {[%clk 0:02:56.3]} 5. O-O {[%clk 0:02:17.6]}
5... g6 {[%clk 0:02:55.9]} 6. c4 {[%clk 0:02:10.9]} 6... Bg7 {[%clk 0:02:55.4]}
7. Nc3 {[%clk 0:02:11.5]} 7... Nge7 {[%clk 0:02:54.7]} 8. Rb1 {[%clk 0:02:10.8]}
8... O-O {[%clk 0:02:54.5]} 9. a3 {[%clk 0:02:11]} 9... a5 {[%clk 0:02:55.1]}
10. Ne1 {[%clk 0:02:08.8]} 10... f5 {[%clk 0:02:51.6]} 11. Nc2 {[%clk 0:02:09]}
11... Be6 {[%clk 0:02:47.8]} 12. Ne3 {[%clk 0:02:08.9]} 12... f4 {[%clk
0:02:40.5]} 13. Ned5 {[%clk 0:02:08.8]} 13... g5 {[%clk 0:02:38.6]} 14. b4
{[%clk 0:02:05.1]} 14... axb4 {[%clk 0:02:03.2]} 15. axb4 {[%clk 0:02:06]} 15...
Ra7 {[%clk 0:01:34.6]} 16. Nxe7+ {[%clk 0:01:49.4]} 16... Qxe7 {[%clk
0:01:35.5]} 17. Nd5 {[%clk 0:01:49.2]} 17... Qf7 {[%clk 0:01:19.4]} 18. bxc5
{[%clk 0:01:47.8]} 18... dxc5 {[%clk 0:01:20.3]} 19. Bb2 {[%clk 0:01:46]} 19...
g4 {[%clk 0:01:04.9]} 20. Be4 {[%clk 0:01:27.8]} 20... Nd4 {[%clk 0:00:50.8]}
21. Bxd4 {[%clk 0:01:24.2]} 21... cxd4 {[%clk 0:00:51.7]} 22. Rb6 {[%clk
0:01:20.8]} 22... Bf5 {[%clk 0:00:47.8]} 23. Bxf5 {[%clk 0:01:19.1]} 1-0

[Event "Early-Titled-Tuesday-Blitz-October-24-2023"]
[Site "Chess.com"]
[Date "2023.10.24"]
[Round "4"]
[White "Nyzhnyk_Illia"]
[Black "CFN_Good_Evening"]
[Result "1-0"]
[WhiteElo "2852"]
[BlackElo "1770"]
[TimeControl "180+1"]
[EndTime "8:35:37 PDT"]
[Termination "Nyzhnyk_Illia won by resignation"]

1. d4 {[%clk 0:03:00.9]} 1... Nf6 {[%clk 0:03:00]} 2. c4 {[%clk 0:03:01.2]} 2...
e6 {[%clk 0:03:00.2]} 3. Nf3 {[%clk 0:03:01.7]} 3... d5 {[%clk 0:03:00.3]} 4.
Nc3 {[%clk 0:03:01.8]} 4... Be7 {[%clk 0:03:00.4]} 5. Bg5 {[%clk 0:03:01.4]}
5... O-O {[%clk 0:03:00.3]} 6. Rc1 {[%clk 0:03:01.6]} 6... c6 {[%clk 0:02:59.1]}
7. e3 {[%clk 0:02:59.7]} 7... Nbd7 {[%clk 0:02:57.3]} 8. Qc2 {[%clk 0:02:58.6]}
8... Qa5 {[%clk 0:02:56.9]} 9. cxd5 {[%clk 0:02:57.3]} 9... Nxd5 {[%clk
0:02:47.1]} 10. Bxe7 {[%clk 0:02:53.2]} 10... Nxe7 {[%clk 0:02:48]} 11. Bd3
{[%clk 0:02:53.3]} 11... h6 {[%clk 0:02:44.3]} 12. O-O {[%clk 0:02:47.2]} 12...
e5 {[%clk 0:02:35.8]} 13. Rfd1 {[%clk 0:02:41.5]} 13... exd4 {[%clk 0:02:26.7]}
14. Nxd4 {[%clk 0:02:42.4]} 14... Qh5 {[%clk 0:02:06.6]} 15. h3 {[%clk
0:02:38.8]} 15... Ne5 {[%clk 0:02:05]} 16. Be2 {[%clk 0:02:38.5]} 16... Qg6
{[%clk 0:01:59.7]} 17. f4 {[%clk 0:02:37.9]} 17... Qxc2 {[%clk 0:01:37.3]} 18.
Rxc2 {[%clk 0:02:37.9]} 18... N5g6 {[%clk 0:01:33]} 19. g4 {[%clk 0:02:34.6]}
19... f5 {[%clk 0:01:30.2]} 20. Kg2 {[%clk 0:02:34.2]} 20... fxg4 {[%clk
0:01:10.6]} 21. hxg4 {[%clk 0:02:35.1]} 21... h5 {[%clk 0:01:11.1]} 22. gxh5
{[%clk 0:02:32.3]} 22... Nh4+ {[%clk 0:01:11.3]} 23. Kf2 {[%clk 0:02:31.9]}
23... Nef5 {[%clk 0:01:10.6]} 24. Nxf5 {[%clk 0:02:26.8]} 24... Bxf5 {[%clk
0:01:10.4]} 25. e4 {[%clk 0:02:27.1]} 25... Be6 {[%clk 0:01:04.2]} 26. f5 {[%clk
0:02:26.6]} 26... Nxf5 {[%clk 0:01:00.1]} 27. exf5 {[%clk 0:02:19.1]} 27... Bxf5
{[%clk 0:01:01]} 28. Rcd2 {[%clk 0:02:19]} 28... Bc2+ {[%clk 0:00:56]} 29. Kg3
{[%clk 0:02:19.5]} 29... Bxd1 {[%clk 0:00:55.6]} 30. Rxd1 {[%clk 0:02:20.4]}
30... Rae8 {[%clk 0:00:50.9]} 31. Bd3 {[%clk 0:02:17.5]} 31... Kh8 {[%clk
0:00:51.3]} 32. Ne4 {[%clk 0:02:17]} 32... Rf5 {[%clk 0:00:47.3]} 33. Kg4 {[%clk
0:02:17.3]} 33... Rd5 {[%clk 0:00:45.8]} 34. Nf2 {[%clk 0:02:04.4]} 34... Re3
{[%clk 0:00:38.9]} 35. Kf4 {[%clk 0:02:00.2]} 35... Rh3 {[%clk 0:00:37.9]} 36.
Nxh3 {[%clk 0:02:00]} 36... Rd4+ {[%clk 0:00:37.4]} 37. Ke5 {[%clk 0:01:59.9]}
37... Rd5+ {[%clk 0:00:36.8]} 38. Ke6 {[%clk 0:02:00]} 38... Rxh5 {[%clk
0:00:35]} 39. Bg6 {[%clk 0:02:00.2]} 1-0

[Event "Early-Titled-Tuesday-Blitz-October-24-2023"]
[Site "Chess.com"]
[Date "2023.10.24"]
[Round "4"]
[White "Maect19"]
[Black "Suleyman_Chess06"]
[Result "0-1"]
[WhiteElo "2279"]
[BlackElo "2604"]
[TimeControl "180+1"]
[EndTime "8:35:42 PDT"]
[Termination "Suleyman_Chess06 won by checkmate"]

1. d4 {[%clk 0:03:00.9]} 1... Nf6 {[%clk 0:02:56.2]} 2. Nf3 {[%clk 0:03:00.6]}
2... d5 {[%clk 0:02:56.3]} 3. e3 {[%clk 0:02:59.6]} 3... c6 {[%clk 0:02:56.5]}
4. Bd3 {[%clk 0:02:59.4]} 4... Bg4 {[%clk 0:02:51.9]} 5. O-O {[%clk 0:02:58.3]}
5... e6 {[%clk 0:02:52]} 6. Nbd2 {[%clk 0:02:57.9]} 6... Bd6 {[%clk 0:02:51.7]}
7. h3 {[%clk 0:02:57.8]} 7... Bh5 {[%clk 0:02:52]} 8. b3 {[%clk 0:02:57.8]} 8...
Nbd7 {[%clk 0:02:51.9]} 9. Bb2 {[%clk 0:02:57.5]} 9... Qc7 {[%clk 0:02:52.3]}
10. c4 {[%clk 0:02:53.9]} 10... O-O {[%clk 0:02:50]} 11. e4 {[%clk 0:02:51.5]}
11... dxe4 {[%clk 0:02:49]} 12. Nxe4 {[%clk 0:02:52.4]} 12... Nxe4 {[%clk
0:02:49.5]} 13. Bxe4 {[%clk 0:02:52.3]} 13... Nf6 {[%clk 0:02:49.9]} 14. Bc2
{[%clk 0:02:51.7]} 14... Rad8 {[%clk 0:02:48.9]} 15. Qd3 {[%clk 0:02:47.1]}
15... Bg6 {[%clk 0:02:48.5]} 16. Qe2 {[%clk 0:02:46.1]} 16... Rfe8 {[%clk
0:02:39.7]} 17. Rad1 {[%clk 0:02:43.9]} 17... Qa5 {[%clk 0:02:34.3]} 18. Bxg6
{[%clk 0:02:41.5]} 18... hxg6 {[%clk 0:02:34.1]} 19. Ba1 {[%clk 0:02:36.1]}
19... c5 {[%clk 0:02:19.1]} 20. dxc5 {[%clk 0:02:28.4]} 20... Qxc5 {[%clk
0:02:20]} 21. Bd4 {[%clk 0:02:17]} 21... Qc7 {[%clk 0:02:18.9]} 22. Qb2 {[%clk
0:02:16]} 22... e5 {[%clk 0:02:15.7]} 23. Bc3 {[%clk 0:02:13.9]} 23... e4 {[%clk
0:02:15.9]} 24. Nd4 {[%clk 0:01:38.4]} 24... a6 {[%clk 0:02:12.9]} 25. Ne2
{[%clk 0:01:34.2]} 25... e3 {[%clk 0:02:06.9]} 26. f4 {[%clk 0:01:15]} 26... Nh5
{[%clk 0:01:56.3]} 27. f5 {[%clk 0:01:10.2]} 27... Bh2+ {[%clk 0:01:50]} 28. Kh1
{[%clk 0:01:08.8]} 28... Rxd1 {[%clk 0:01:49.9]} 29. Rxd1 {[%clk 0:01:07.5]}
29... Ng3+ {[%clk 0:01:50.3]} 30. Nxg3 {[%clk 0:01:07]} 30... Bxg3 {[%clk
0:01:51.2]} 31. Qe2 {[%clk 0:00:57.9]} 31... gxf5 {[%clk 0:01:48.1]} 32. Be1
{[%clk 0:00:47.8]} 32... Bxe1 {[%clk 0:01:47.5]} 33. Rxe1 {[%clk 0:00:47]} 33...
Qg3 {[%clk 0:01:47.1]} 34. Kg1 {[%clk 0:00:44.9]} 34... f4 {[%clk 0:01:46.5]}
35. Kf1 {[%clk 0:00:44.1]} 35... Rd8 {[%clk 0:01:41.1]} 36. Rd1 {[%clk
0:00:41.5]} 36... Rxd1+ {[%clk 0:01:40.8]} 37. Qxd1 {[%clk 0:00:40.3]} 37...
Qf2# {[%clk 0:01:41.4]} 0-1

[Event "Early-Titled-Tuesday-Blitz-October-24-2023"]
[Site "Chess.com"]
[Date "2023.10.24"]
[Round "4"]
[White "Lion_DL"]
[Black "abelmat"]
[Result "1-0"]
[WhiteElo "2424"]
[BlackElo "1995"]
[TimeControl "180+1"]
[EndTime "8:35:42 PDT"]
[Termination "Lion_DL won by checkmate"]

1. d4 {[%clk 0:03:00.9]} 1... d5 {[%clk 0:02:51.7]} 2. c4 {[%clk 0:03:01]} 2...
e6 {[%clk 0:02:51]} 3. Nc3 {[%clk 0:03:01.3]} 3... Nf6 {[%clk 0:02:51.5]} 4.
cxd5 {[%clk 0:03:02]} 4... exd5 {[%clk 0:02:49.7]} 5. Bg5 {[%clk 0:03:02.6]}
5... c6 {[%clk 0:02:49.2]} 6. e3 {[%clk 0:03:03]} 6... Bd6 {[%clk 0:02:48.6]} 7.
Qc2 {[%clk 0:03:02.7]} 7... O-O {[%clk 0:02:48.6]} 8. Bd3 {[%clk 0:03:02.5]}
8... h6 {[%clk 0:02:44.6]} 9. Bh4 {[%clk 0:03:00.8]} 9... a5 {[%clk 0:02:43.4]}
10. Nf3 {[%clk 0:02:59.4]} 10... Na6 {[%clk 0:02:42.9]} 11. a3 {[%clk
0:03:00.1]} 11... Nc7 {[%clk 0:02:42.9]} 12. O-O {[%clk 0:02:58.6]} 12... Ne6
{[%clk 0:02:38.6]} 13. Ne5 {[%clk 0:02:56.5]} 13... Ng5 {[%clk 0:02:27.5]} 14.
f4 {[%clk 0:02:46.3]} 14... Ne6 {[%clk 0:02:14.5]} 15. Rae1 {[%clk 0:02:23.8]}
15... c5 {[%clk 0:02:13.3]} 16. Qf2 {[%clk 0:02:21.5]} 16... Be7 {[%clk
0:01:58.3]} 17. Bb1 {[%clk 0:02:06.4]} 17... Qb6 {[%clk 0:01:51.3]} 18. Bxf6
{[%clk 0:02:02.2]} 18... gxf6 {[%clk 0:01:05.6]} 19. Nxd5 {[%clk 0:02:01.7]}
19... Qd8 {[%clk 0:01:00]} 20. Nxe7+ {[%clk 0:02:01.8]} 20... Qxe7 {[%clk
0:00:58.5]} 21. Ng4 {[%clk 0:02:00.3]} 21... Ng7 {[%clk 0:00:18.6]} 22. Nxh6+
{[%clk 0:01:56.9]} 22... Kh8 {[%clk 0:00:18.2]} 23. Qh4 {[%clk 0:01:57.3]} 23...
Be6 {[%clk 0:00:06.2]} 24. Ng4+ {[%clk 0:01:56.3]} 24... Kg8 {[%clk 0:00:04.7]}
25. Qh7# {[%clk 0:01:56.2]} 1-0